{"text_format":"3","workbook":"xlsx","n_sheets":2,"sheets":["Start","Hochzeitsbudget"],"read":"whole","date_system":"1900"}

{"sheet":"Start","index":0,"n_rows":7,"n_cols":2,"rows_kept":7}
[null,"ÜBER DIESE VORLAGE"]
[null,"Verwenden Sie diese Vorlage, um die tatsächlichen Hochzeitsausgaben für verschiedene Posten zu protokollieren und sie mit den ursprünglich eingeplanten Beträgen vergleichen zu können."]
[null,"Geben Sie Ausgaben für Kleidung, Dekoration, Geschenke, Blumen, Musik, Fotografie, Empfang, Briefpapier, Transport und verschiedene Posten in die jeweiligen Tabellen ein."]
[null,"Die geschätzten und die tatsächlichen Gesamtausgaben werden automatisch berechnet."]
[null,"Notiz: "]
[null,"Weitere Anweisungen wurden in Spalte A auf dem Arbeitsblatts HOCHZEITSBUDGET bereitgestellt. Diese Texte wurden absichtlich ausgeblendet. Um die Texte zu entfernen, wählen Sie Spalte A und dann ENTF aus. Um die Texte einzublenden, wählen Sie Spalte A aus, und ändern Sie die Schriftfarbe."]
[null,"Um mehr über Tabellen zu erfahren, drücken Sie die UMSCHALTTASTE und dann F10 innerhalb einer Tabelle, wählen Sie die Option TABELLE und dann ALTERNATIVTEXT aus."]

{"sheet":"Hochzeitsbudget","index":1,"n_rows":93,"n_cols":4,"rows_kept":93,"merged":[[0,1,0,3],[2,1,2,3],[6,1,6,3],[15,1,15,3],[25,1,25,3],[34,1,34,3],[43,1,43,3],[50,1,50,3],[59,1,59,3],[68,1,68,3],[77,1,77,3],[85,1,85,3]]}
[null,"HOCHZEITSBUDGET"]
[]
[null,"GESAMTAUSGABEN "]
[null,"Posten ","Geschätzt","Tatsächlich"]
[null,"Gesamtausgaben ",{"$f":"SUM(Kleidung[[#Totals],[Geschätzt]],Dekoration[[#Totals],[Geschätzt]],Geschenke[[#Totals],[Geschätzt]],Blumen[[#Totals],[Geschätzt]],Musik[[#Totals],[Geschätzt]],Fotos[[#Totals],[Geschätzt]],Empfang[[#Totals],[Geschätzt]],EinladungenUndDruck[[#Totals],[Geschätzt]],Transport[[#Totals],[Geschätzt]],SonstigeAusgaben[[#Totals],[Geschätzt]])","v":0},{"$f":"SUM(Kleidung[[#Totals],[Tatsächlich]],Dekoration[[#Totals],[Tatsächlich]],Geschenke[[#Totals],[Tatsächlich]],Blumen[[#Totals],[Tatsächlich]],Musik[[#Totals],[Tatsächlich]],Fotos[[#Totals],[Tatsächlich]],Empfang[[#Totals],[Tatsächlich]],EinladungenUndDruck[[#Totals],[Tatsächlich]],Transport[[#Totals],[Tatsächlich]],SonstigeAusgaben[[#Totals],[Tatsächlich]],)","v":0}]
[]
[null,"KLEIDUNG"]
[null,"Posten ","Geschätzt","Tatsächlich"]
[null,"Verlobungsring"]
[null,"Trauringe"]
[null,"Brautkleid"]
[null,"Schleier/Kopfschmuck"]
[null,"Sonstiges:"]
[null,"Gesamtbetrag für Kleidung",{"$f":"SUBTOTAL(109,Kleidung[Geschätzt])","v":0},{"$f":"SUBTOTAL(109,Kleidung[Tatsächlich])","v":0}]
[]
[null,"DEKORATION"]
[null,"Posten ","Geschätzt","Tatsächlich"]
[null,"Schleifen für Kirchenbänke/andere Sitzmöglichkeiten"]
[null,"Tafelaufsätze (ohne Blumen)"]
[null,"Kerzen"]
[null,"Beleuchtung"]
[null,"Luftballons"]
[null,"Sonstiges:"]
[null,"Gesamtbetrag für Dekoration",{"$f":"SUBTOTAL(109,Dekoration[Geschätzt])","v":0},{"$f":"SUBTOTAL(109,Dekoration[Tatsächlich])","v":0}]
[]
[null,"GESCHENKE"]
[null,"Posten ","Geschätzt","Tatsächlich"]
[null,"Gäste"]
[null,"Braut und Bräutigam"]
[null,"Eltern"]
[null,"Leser/andere Teilnehmer"]
[null,"Sonstiges:"]
[null,"Gesamtbetrag für Geschenke",{"$f":"SUBTOTAL(109,Geschenke[Geschätzt])","v":0},{"$f":"SUBTOTAL(109,Geschenke[Tatsächlich])","v":0}]
[]
[null,"BLUMEN"]
[null,"Posten ","Geschätzt","Tatsächlich"]
[null,"Blumensträuße"]
[null,"Boutonnières"]
[null,"Anstecksträuße"]
[null,"Trauung"]
[null,"Sonstiges:"]
[null,"Gesamtbetrag für Blumen",{"$f":"SUBTOTAL(109,Blumen[Geschätzt])","v":0},{"$f":"SUBTOTAL(109,Blumen[Tatsächlich])","v":0}]
[]
[null,"MUSIK"]
[null,"Posten ","Geschätzt","Tatsächlich"]
[null,"Musiker für Trauung"]
[null,"Band/DJ für Empfang"]
[null,"Sonstiges:"]
[null,"Gesamtbetrag für Musik",{"$f":"SUBTOTAL(109,Musik[Geschätzt])","v":0},{"$f":"SUBTOTAL(109,Musik[Tatsächlich])","v":0}]
[]
[null,"FOTOGRAFIE"]
[null,"Posten ","Geschätzt","Tatsächlich"]
[null,"Formelle Fotos"]
[null,"Schnappschüsse"]
[null,"Zusätzliche Abzüge"]
[null,"Fotoalben"]
[null,"Sonstiges:"]
[null,"Gesamtbetrag für Fotografie",{"$f":"SUBTOTAL(109,Fotos[Geschätzt])","v":0},{"$f":"SUBTOTAL(109,Fotos[Tatsächlich])","v":0}]
[]
[null,"EMPFANG "]
[null,"Posten ","Geschätzt","Tatsächlich"]
[null,"Raum-/Saalkosten"]
[null,"Tische und Stühle"]
[null,"Essen"]
[null,"Tischwäsche"]
[null,"Sonstiges:"]
[null,"Gesamtbetrag für Empfang (ohne Musik und Dekoration)",{"$f":"SUBTOTAL(109,Empfang[Geschätzt])","v":0},{"$f":"SUBTOTAL(109,Empfang[Tatsächlich])","v":0}]
[]
[null,"BRIEFPAPIER UND DRUCK"]
[null,"Posten ","Geschätzt","Tatsächlich"]
[null,"Einladungen"]
[null,"Ankündigungen"]
[null,"Dankschreiben"]
[null,"Persönliches Briefpapier"]
[null,"Sonstiges:"]
[null,"Gesamtbetrag für Briefpapier/Druck",{"$f":"SUBTOTAL(109,EinladungenUndDruck[Geschätzt])","v":0},{"$f":"SUBTOTAL(109,EinladungenUndDruck[Tatsächlich])","v":0}]
[]
[null,"TRANSPORT"]
[null,"Posten ","Geschätzt","Tatsächlich"]
[null,"Limousinen/Handwagen"]
[null,"Parken"]
[null,"Taxis"]
[null,"Sonstiges:"]
[null,"Gesamtbetrag für Transport",{"$f":"SUBTOTAL(109,Transport[Geschätzt])","v":0},{"$f":"SUBTOTAL(109,Transport[Tatsächlich])","v":0}]
[]
[null,"SONSTIGE AUSGABEN"]
[null,"Posten ","Geschätzt","Tatsächlich"]
[null,"Offiziant"]
[null,"Kosten für Kirche/Zeremonie"]
[null,"Hochzeitskoordinator"]
[null,"Probe-Abendessen"]
[null,"Sonstiges:"]
[null,"Gesamtbetrag für sonstige Ausgaben",{"$f":"SUBTOTAL(109,SonstigeAusgaben[Geschätzt])","v":0},{"$f":"SUBTOTAL(109,SonstigeAusgaben[Tatsächlich])","v":0}]